{"text_format":"1","workbook":"xlsx","n_sheets":2,"sheets":["SOLICITUD_PAGO","Tablas"],"not_rendered":{"charts":0,"images":6,"macros":1,"external_links":0,"defined_names":28,"comments":0,"pivot_tables":0},"unopened":[],"bounds":{"document_bytes":16777216,"sheet_cells":100000,"rows_first":2000,"rows_last":500,"rows_between":2000,"halvings":0,"cell_chars":16384,"cell_head_chars":4096},"cells_cut":0,"cells_raw":0,"read":"whole","date_system":"1900"}

{"sheet":"SOLICITUD_PAGO","index":0,"n_rows":59,"n_cols":8,"rows_kept":59,"cut":false,"hidden":false,"merged":[[48,3,49,7],[50,3,50,7],[58,5,58,7],[57,5,57,7],[57,2,57,3],[58,2,58,3],[7,6,7,7],[10,2,10,7],[21,2,21,7],[23,5,23,7],[35,2,35,7],[24,5,24,7],[25,5,25,7],[29,5,29,7],[30,5,30,7],[31,5,31,7],[32,5,32,7],[33,5,33,7],[26,5,26,7],[47,3,47,7],[46,2,46,7],[41,5,41,7],[42,5,42,7],[43,5,43,7],[44,5,44,7],[45,5,45,7]]}
[]
[]
[null,null,null,null,null,"Nota:"]
[null,null,null,null,null,"Formulario aplica a todo solicitud de pago que no esté "]
[null,null,null,null,null,"sustentada con una  Factura de Proveedor, "]
[null,null,null,null,null,"Boleta de Honorarios  y/o órden de compra."]
[null,null,"Solicitud de pago ",null,null,null,"Fecha "]
[null,null,"Gerencia de Finanzas, Casa Central"]
[]
[]
[null,null,"Marque el motivo del pago"]
[]
[null,null,"Notarias",null,"Luz DFL2",null,null,"Anticipo Proveedor *"]
[null,null,"Contribuciones",null,"Agua DFL2"]
[null,null,"Patentes",null,"Telefonos"]
[null,null,"Gastos Comunes",null,"Conservador"]
[null,null,"Impuestos",null,"Permiso Municipal",null,null,"* No necesita dimensiones"]
[null,null,"Otros",null,"Permiso Edificacion",null,null," Financieras"]
[null,null,"Describa: "]
[]
[]
[null,null,"Identificación del Gasto y Monto"]
[null,null,"   "]
[null,null,"Empresa Giradora"]
[null,null,"N° Cuenta Contable DYNAMICS"]
[null,null,"Centro de Gestión o Centro de Costo"]
[null,null,"Dimension Financiera"]
[]
[]
[null,null,"I1_Proyecto (Dimension 2)"]
[null,null,"I2_Cuenta (Dimension 3)"]
[null,null,"I3_Etapa_Bodega (Dimension 4)"]
[null,null,"I4_Bienes_Subodega (Dimension 5)"]
[null,null,"Categoria de Compra "]
[]
[null,null,"Antecedentes adicionales"]
[]
[null,null,"Identificación de los adjuntos o respaldos",null,null,"1.-","Boletas"]
[null,null,null,null,null,"2.-","Comprobante de pago"]
[null,null,null,null,null,"3.-","Etc"]
[null,null,null,"Datos de transferencia"]
[null,null,null,"Destinatario:"]
[null,null,"Girar Cheque","Rut"]
[null,null,"TFB","Banco"]
[null,null,"Vale vista","tipo y Nº de cta."]
[null,null,"Servipag","correo:"]
[null,null,"Observaciones"]
[null,null,"Pedido de Compra:"]
[null,null,"GLOSA:"]
[]
[null,null,"TOTAL:"]
[]
[]
[]
[]
[]
[]
[]
[null,null,"Nombre y Firma Solicitante",null,null,"Nombre Gerente área solicitante"]

{"sheet":"Tablas","index":1,"n_rows":119,"n_cols":36,"rows_kept":119,"cut":false,"hidden":false,"merged":[]}
["Pregunta","Dimension2","Nombre Zonal","Clave",null,"Inmobiliaria","Zonal","Codigo","Descripcion","LegalEntityId","AUX",null,"Inmobiliaria","LegalEntityId","Zonal",null,"LegalEntityId","Name","Clave",null,"Codigo","I3_Etapa-Bodega","Codigo_1","I4_Bienes-SubBodega","Categoria de Compra","Cuenta Contable","Descripcion",null,"Codigo","I3_Etapa-Bodega","Clave",null,"Codigo","I3_Etapa-Bodega","Codigo_1","I4_Bienes-SubBodega"]
["¿Es bodega Post-Vta?","S07001","Carola Jachura",{"$f":"Zonales[[#This Row],[Nombre Zonal]]&\" - \"&Zonales[[#This Row],[Dimension2]]","v":"Carola Jachura - S07001"},null,"Inmobiliaria Viviendas 2000 SPA",{"$f":"LEFT(DFProyectos[[#This Row],[Codigo]],4)","v":"GZ01"},"GZ0101","Oficina Iv Region MQ","i01","GZ0101i01",null,"Inmobiliaria Viviendas 2000 SPA","i01","GZ01",null,"i01","INMOBILIARIA VIVIENDAS 2000 Spa",{"$f":"DFEmpresas[[#This Row],[LegalEntityId]]&\" - \"&DFEmpresas[[#This Row],[Name]]","v":"i01 - INMOBILIARIA VIVIENDAS 2000 Spa"},null,"BOD01","Terreno","S01001","Compra de Terreno","Compra de Terreno",11065007,"Existencia de Terreno",null,"BOD01","Terreno",{"$f":"Bodegas[[#This Row],[Codigo]]& \" - \"&Bodegas[[#This Row],[I3_Etapa-Bodega]]","v":"BOD01 - Terreno"},null,"BOD01","Terreno","S01001","Compra de Terreno"]
["¿Es Gestion Vta?","S05002","Claudia Hernandez",{"$f":"Zonales[[#This Row],[Nombre Zonal]]&\" - \"&Zonales[[#This Row],[Dimension2]]","v":"Claudia Hernandez - S05002"},null,"Inmobiliaria Viviendas 2000 SPA",{"$f":"LEFT(DFProyectos[[#This Row],[Codigo]],4)","v":"GZ01"},"GZ0102","Proyectos Antiguos MQ","i01","GZ0102i01",null,"Inmobiliaria San Agustin SpA","I15","GZ01",null,"I02","Inversiones Ejecutivos 2019 SpA",{"$f":"DFEmpresas[[#This Row],[LegalEntityId]]&\" - \"&DFEmpresas[[#This Row],[Name]]","v":"I02 - Inversiones Ejecutivos 2019 SpA"},null,"BOD01","Terreno","S01001","Compra de Terreno","Comisión de Compra de terreno",11066001,"Obras en Construccion",null,"BOD02","Honorarios y Proyectos",{"$f":"Bodegas[[#This Row],[Codigo]]& \" - \"&Bodegas[[#This Row],[I3_Etapa-Bodega]]","v":"BOD02 - Honorarios y Proyectos"},null,"BOD01","Terreno","S01002","Otros Gastos Terreno"]
["¿Es GOC?","S05003","Fernando Arancibia",{"$f":"Zonales[[#This Row],[Nombre Zonal]]&\" - \"&Zonales[[#This Row],[Dimension2]]","v":"Fernando Arancibia - S05003"},null,"Inmobiliaria Viviendas 2000 SPA",{"$f":"LEFT(DFProyectos[[#This Row],[Codigo]],4)","v":"GZ01"},"GZ0103","Senderos Del Milagro 1","i01","GZ0103i01",null,"Inmobiliaria 4 Esquinas Spa","I05","GZ01",null,"I03","Inversiones Ejecutivos 2020 SpA",{"$f":"DFEmpresas[[#This Row],[LegalEntityId]]&\" - \"&DFEmpresas[[#This Row],[Name]]","v":"I03 - Inversiones Ejecutivos 2020 SpA"},null,"BOD01","Terreno","S01002","Otros Gastos Terreno","Demolición",11066001,"Obras en Construccion",null,"BOD03","Permisos y Aportes",{"$f":"Bodegas[[#This Row],[Codigo]]& \" - \"&Bodegas[[#This Row],[I3_Etapa-Bodega]]","v":"BOD03 - Permisos y Aportes"},null,"BOD01","Terreno","S01003","Activacion GF Terreno"]
["¿Es FM?","GZ07","Fernando Moraga",{"$f":"Zonales[[#This Row],[Nombre Zonal]]&\" - \"&Zonales[[#This Row],[Dimension2]]","v":"Fernando Moraga - GZ07"},null,"Inmobiliaria Viviendas 2000 SPA",{"$f":"LEFT(DFProyectos[[#This Row],[Codigo]],4)","v":"GZ01"},"GZ0104","Senderos Del Milagro 2","i01","GZ0104i01",null,"Inmobiliaria Viviendas 2000 SPA","i01","GZ02",null,"I04","FG GESTION INMOBILIARIA Spa",{"$f":"DFEmpresas[[#This Row],[LegalEntityId]]&\" - \"&DFEmpresas[[#This Row],[Name]]","v":"I04 - FG GESTION INMOBILIARIA Spa"},null,"BOD01","Terreno","S01002","Otros Gastos Terreno","Otros Gastos Terreno",11066001,"Obras en Construccion",null,"BOD04","Construccion",{"$f":"Bodegas[[#This Row],[Codigo]]& \" - \"&Bodegas[[#This Row],[I3_Etapa-Bodega]]","v":"BOD04 - Construccion"},null,"BOD02","Honorarios y Proyectos","S02001","Arquitectura"]
["Legal","Legal","Ingrid Rodas",{"$f":"Zonales[[#This Row],[Nombre Zonal]]&\" - \"&Zonales[[#This Row],[Dimension2]]","v":"Ingrid Rodas - Legal"},null,"Inmobiliaria Viviendas 2000 SPA",{"$f":"LEFT(DFProyectos[[#This Row],[Codigo]],4)","v":"GZ01"},"GZ0105","Jardines De Pinamar 1","i01","GZ0105i01",null,"FG Inmobiliaria S.P.A","I27","GZ02",null,"I05","INMOBILIARIA 4 ESQUINAS Spa",{"$f":"DFEmpresas[[#This Row],[LegalEntityId]]&\" - \"&DFEmpresas[[#This Row],[Name]]","v":"I05 - INMOBILIARIA 4 ESQUINAS Spa"},null,"BOD01","Terreno","S01002","Otros Gastos Terreno","Cierre Perimetral",11066001,"Obras en Construccion",null,"BOD05","Comercializacion",{"$f":"Bodegas[[#This Row],[Codigo]]& \" - \"&Bodegas[[#This Row],[I3_Etapa-Bodega]]","v":"BOD05 - Comercializacion"},null,"BOD02","Honorarios y Proyectos","S02002","Ingenieria Estructural"]
["¿Es JB?","GZ04","Jaime Bastias",{"$f":"Zonales[[#This Row],[Nombre Zonal]]&\" - \"&Zonales[[#This Row],[Dimension2]]","v":"Jaime Bastias - GZ04"},null,"Inmobiliaria Viviendas 2000 SPA",{"$f":"LEFT(DFProyectos[[#This Row],[Codigo]],4)","v":"GZ01"},"GZ0106","Portal De Pinamar","i01","GZ0106i01",null,"Inmobiliaria Calle Calle Ltda.","I18","GZ02",null,"I06","INMOBILIARIA ALONSO DE ERCILLA Spa",{"$f":"DFEmpresas[[#This Row],[LegalEntityId]]&\" - \"&DFEmpresas[[#This Row],[Name]]","v":"I06 - INMOBILIARIA ALONSO DE ERCILLA Spa"},null,"BOD01","Terreno","S01003","Activacion GF Terreno","Activación Gasto Financiero",11066001,"Obras en Construccion",null,"BOD06","Operación",{"$f":"Bodegas[[#This Row],[Codigo]]& \" - \"&Bodegas[[#This Row],[I3_Etapa-Bodega]]","v":"BOD06 - Operación"},null,"BOD02","Honorarios y Proyectos","S02003","Otras especialidades"]
["¿Es JOL?","GZ06","Jose Octavio Larrete",{"$f":"Zonales[[#This Row],[Nombre Zonal]]&\" - \"&Zonales[[#This Row],[Dimension2]]","v":"Jose Octavio Larrete - GZ06"},null,"Inmobiliaria Viviendas 2000 SPA",{"$f":"LEFT(DFProyectos[[#This Row],[Codigo]],4)","v":"GZ01"},"GZ0107","Altos Del Rosario 5","i01","GZ0107i01",null,"Inmobiliaria Santa Blanca SpA","I16","GZ02",null,"I07","INMOBILIARIA AMERICA SPA",{"$f":"DFEmpresas[[#This Row],[LegalEntityId]]&\" - \"&DFEmpresas[[#This Row],[Name]]","v":"I07 - INMOBILIARIA AMERICA SPA"},null,"BOD02","Honorarios y Proyectos","S02001","Arquitectura","Arquitectura",11066001,"Obras en Construccion",null,"BOD07","Post-Venta",{"$f":"Bodegas[[#This Row],[Codigo]]& \" - \"&Bodegas[[#This Row],[I3_Etapa-Bodega]]","v":"BOD07 - Post-Venta"},null,"BOD02","Honorarios y Proyectos","S02004","DIA, IMIV "]
["¿Es JW?","GZ05","Julio Watkins",{"$f":"Zonales[[#This Row],[Nombre Zonal]]&\" - \"&Zonales[[#This Row],[Dimension2]]","v":"Julio Watkins - GZ05"},null,"Inmobiliaria Viviendas 2000 SPA",{"$f":"LEFT(DFProyectos[[#This Row],[Codigo]],4)","v":"GZ01"},"GZ0108","Lomas Del Rosario","i01","GZ0108i01",null,"Inmobiliaria Los Huertos SpA","I12","GZ02",null,"I08","INMOBILIARIA DONA CARMELA Spa",{"$f":"DFEmpresas[[#This Row],[LegalEntityId]]&\" - \"&DFEmpresas[[#This Row],[Name]]","v":"I08 - INMOBILIARIA DONA CARMELA Spa"},null,"BOD02","Honorarios y Proyectos","S02002","Ingenieria Estructural","Ingeniería Estructural",11066001,"Obras en Construccion",null,"BOD08","Administracion",{"$f":"Bodegas[[#This Row],[Codigo]]& \" - \"&Bodegas[[#This Row],[I3_Etapa-Bodega]]","v":"BOD08 - Administracion"},null,"BOD02","Honorarios y Proyectos","S02005","ITO"]
["¿Es MQ?","GZ01","Manuel Quinteros",{"$f":"Zonales[[#This Row],[Nombre Zonal]]&\" - \"&Zonales[[#This Row],[Dimension2]]","v":"Manuel Quinteros - GZ01"},null,"Inmobiliaria Viviendas 2000 SPA",{"$f":"LEFT(DFProyectos[[#This Row],[Codigo]],4)","v":"GZ01"},"GZ0109","Brisas De Cerro Grande","i01","GZ0109i01",null,"Inmobiliaria Viviendas 2000 SPA","i01","GZ03",null,"I09","INMOBILIARIA FG MAÑIO SPA",{"$f":"DFEmpresas[[#This Row],[LegalEntityId]]&\" - \"&DFEmpresas[[#This Row],[Name]]","v":"I09 - INMOBILIARIA FG MAÑIO SPA"},null,"BOD02","Honorarios y Proyectos","S02003","Otras especialidades","Proyecto Eléctrico",11066001,"Obras en Construccion",null,"BOD09","Financiero",{"$f":"Bodegas[[#This Row],[Codigo]]& \" - \"&Bodegas[[#This Row],[I3_Etapa-Bodega]]","v":"BOD09 - Financiero"},null,"BOD02","Honorarios y Proyectos","S02006","Gerenciamiento Externo"]
["¿Es NP-CLL?","GZ03","Nicole Provoste",{"$f":"Zonales[[#This Row],[Nombre Zonal]]&\" - \"&Zonales[[#This Row],[Dimension2]]","v":"Nicole Provoste - GZ03"},null,"Inmobiliaria Viviendas 2000 SPA",{"$f":"LEFT(DFProyectos[[#This Row],[Codigo]],4)","v":"GZ01"},"GZ0110","Lunger Park 1","i01","GZ0110i01",null,"Inmobiliaria Fg Oriente Ii Spa","NE","GZ03",null,"I10","INMOBILIARIA FG ORIENTE I SPA",{"$f":"DFEmpresas[[#This Row],[LegalEntityId]]&\" - \"&DFEmpresas[[#This Row],[Name]]","v":"I10 - INMOBILIARIA FG ORIENTE I SPA"},null,"BOD02","Honorarios y Proyectos","S02003","Otras especialidades","Proyecto Sanitario",11066001,"Obras en Construccion",null,"BOD10","Contribuciones y Patentes",{"$f":"Bodegas[[#This Row],[Codigo]]& \" - \"&Bodegas[[#This Row],[I3_Etapa-Bodega]]","v":"BOD10 - Contribuciones y Patentes"},null,"BOD03","Permisos y Aportes","S03001","Permisos de edificacion"]
["¿Es MKT?","S05001","Rodrigo Cossio",{"$f":"Zonales[[#This Row],[Nombre Zonal]]&\" - \"&Zonales[[#This Row],[Dimension2]]","v":"Rodrigo Cossio - S05001"},null,"Inmobiliaria Viviendas 2000 SPA",{"$f":"LEFT(DFProyectos[[#This Row],[Codigo]],4)","v":"GZ01"},"GZ0111","Sentrum Park 1","i01","GZ0111i01",null,"Inmobiliaria Beethoven Spa","NE","GZ03",null,"I11","INMOBILIARIA INDEPENDENCIA SPA",{"$f":"DFEmpresas[[#This Row],[LegalEntityId]]&\" - \"&DFEmpresas[[#This Row],[Name]]","v":"I11 - INMOBILIARIA INDEPENDENCIA SPA"},null,"BOD02","Honorarios y Proyectos","S02003","Otras especialidades","Proyecto Gas",11066001,"Obras en Construccion",null,"BOD11","Gastos De Venta Inmuebles",{"$f":"Bodegas[[#This Row],[Codigo]]& \" - \"&Bodegas[[#This Row],[I3_Etapa-Bodega]]","v":"BOD11 - Gastos De Venta Inmuebles"},null,"BOD03","Permisos y Aportes","S03002","Aportes y empalmes"]
["¿Es SC?","GZ02","Sebastian Cerpa",{"$f":"Zonales[[#This Row],[Nombre Zonal]]&\" - \"&Zonales[[#This Row],[Dimension2]]","v":"Sebastian Cerpa - GZ02"},null,"Inmobiliaria Viviendas 2000 SPA",{"$f":"LEFT(DFProyectos[[#This Row],[Codigo]],4)","v":"GZ01"},"GZ0112","Terreno El Rosario","i01","GZ0112i01",null,"INMOBILIARIA DONA JOSEFA Spa","I29","GZ03",null,"I12","INMOBILIARIA LOS HUERTOS SPA",{"$f":"DFEmpresas[[#This Row],[LegalEntityId]]&\" - \"&DFEmpresas[[#This Row],[Name]]","v":"I12 - INMOBILIARIA LOS HUERTOS SPA"},null,"BOD02","Honorarios y Proyectos","S02003","Otras especialidades","Proyecto Clima",11066001,"Obras en Construccion",null,null,null,null,null,"BOD04","Construccion","S04001","Edificacion"]
[null,null,null,null,null,"Inmobiliaria Viviendas 2000 SPA",{"$f":"LEFT(DFProyectos[[#This Row],[Codigo]],4)","v":"GZ01"},"GZ0113","Terreno Fundo El Tejar","i01","GZ0113i01",null,"FG Inmobiliaria S.P.A","I27","GZ03",null,"I13","Inmobiliaria Nueva el Vergel Ltda",{"$f":"DFEmpresas[[#This Row],[LegalEntityId]]&\" - \"&DFEmpresas[[#This Row],[Name]]","v":"I13 - Inmobiliaria Nueva el Vergel Ltda"},null,"BOD02","Honorarios y Proyectos","S02003","Otras especialidades","Proyecto urbanización",11066001,"Obras en Construccion",null,null,null,null,null,"BOD04","Construccion","S04002","Micro Urbanizacion"]
[null,null,null,null,null,"Inmobiliaria Viviendas 2000 SPA",{"$f":"LEFT(DFProyectos[[#This Row],[Codigo]],4)","v":"GZ01"},"GZ0114","Terreno Senderos","i01","GZ0114i01",null,"Inmobiliaria Momentum S.A.","I22","GZ03",null,"I14","INMOBILIARIA ROCAS SPA",{"$f":"DFEmpresas[[#This Row],[LegalEntityId]]&\" - \"&DFEmpresas[[#This Row],[Name]]","v":"I14 - INMOBILIARIA ROCAS SPA"},null,"BOD02","Honorarios y Proyectos","S02003","Otras especialidades","Proyecto Eficiencia Energética",11066001,"Obras en Construccion",null,null,null,null,null,"BOD04","Construccion","S04003","Adicionales"]
[null,null,null,null,null,"Inmobiliaria 4 Esquinas Spa",{"$f":"LEFT(DFProyectos[[#This Row],[Codigo]],4)","v":"GZ01"},"GZ0115","Local Comercial 4 Esquinas","I05","GZ0115I05",null,"Inmobiliaria Nueva el Vergel Ltda","I13","GZ03",null,"I15","INMOBILIARIA SAN AGUSTIN Spa",{"$f":"DFEmpresas[[#This Row],[LegalEntityId]]&\" - \"&DFEmpresas[[#This Row],[Name]]","v":"I15 - INMOBILIARIA SAN AGUSTIN Spa"},null,"BOD02","Honorarios y Proyectos","S02003","Otras especialidades","Proyecto telecomunicaciones",11066001,"Obras en Construccion",null,null,null,null,null,"BOD04","Construccion","S04004","Mitigación"]
[null,null,null,null,null,"Inmobiliaria 4 Esquinas Spa",{"$f":"LEFT(DFProyectos[[#This Row],[Codigo]],4)","v":"GZ01"},"GZ0116","Parque Montemar Etapa 1","I05","GZ0116I05",null,"Inmobiliaria Dona Carmela SpA","I08","GZ03",null,"I16","INMOBILIARIA SANTA BLANCA SPA",{"$f":"DFEmpresas[[#This Row],[LegalEntityId]]&\" - \"&DFEmpresas[[#This Row],[Name]]","v":"I16 - INMOBILIARIA SANTA BLANCA SPA"},null,"BOD02","Honorarios y Proyectos","S02003","Otras especialidades","Coordinación Bim",11066001,"Obras en Construccion",null,null,null,null,null,"BOD04","Construccion","S04005","Macro Urbanizacion"]
[null,null,null,null,null,"Inmobiliaria 4 Esquinas Spa",{"$f":"LEFT(DFProyectos[[#This Row],[Codigo]],4)","v":"GZ01"},"GZ0117","Terreno 4 Esquinas","I05","GZ0117I05",null,"Inmobiliaria Viviendas 2000 SPA","i01","GZ04",null,"I17","VILUMANQUE ORIENTE 2 Spa",{"$f":"DFEmpresas[[#This Row],[LegalEntityId]]&\" - \"&DFEmpresas[[#This Row],[Name]]","v":"I17 - VILUMANQUE ORIENTE 2 Spa"},null,"BOD02","Honorarios y Proyectos","S02003","Otras especialidades","Mecánica de Suelo",11066001,"Obras en Construccion",null,null,null,null,null,"BOD05","Comercializacion","S05001","MARKETING"]
[null,null,null,null,null,"Inmobiliaria San Agustin SpA",{"$f":"LEFT(DFProyectos[[#This Row],[Codigo]],4)","v":"GZ01"},"GZ0118","Terreno San Agustin","I15","GZ0118I15",null,"Inmobiliaria El Tilo SpA","I20","GZ04",null,"I18","INMOBILIARIA CALLE CALLE LTDA.",{"$f":"DFEmpresas[[#This Row],[LegalEntityId]]&\" - \"&DFEmpresas[[#This Row],[Name]]","v":"I18 - INMOBILIARIA CALLE CALLE LTDA."},null,"BOD02","Honorarios y Proyectos","S02003","Otras especialidades","Topografía",11066001,"Obras en Construccion",null,null,null,null,null,"BOD05","Comercializacion","S05002","Gestion de Venta"]
[null,null,null,null,null,"Inmobiliaria San Agustin SpA",{"$f":"LEFT(DFProyectos[[#This Row],[Codigo]],4)","v":"GZ01"},"GZ0119","Terrazas De San Agustín","I15","GZ0119I15",null,"Inmobiliaria America SpA","I07","GZ04",null,"I19","INMOBILIARIA LA CAMPIÑA SPA",{"$f":"DFEmpresas[[#This Row],[LegalEntityId]]&\" - \"&DFEmpresas[[#This Row],[Name]]","v":"I19 - INMOBILIARIA LA CAMPIÑA SPA"},null,"BOD02","Honorarios y Proyectos","S02003","Otras especialidades","Proyecto Paisajismo-Interiorismo",11066001,"Obras en Construccion",null,null,null,null,null,"BOD05","Comercializacion","S05003","Gestion Operación Comercial"]
[null,null,null,null,null,"Inmobiliaria Viviendas 2000 SPA",{"$f":"LEFT(DFProyectos[[#This Row],[Codigo]],4)","v":"GZ01"},"GZ0120","Altos Del Rosario 6 C","i01","GZ0120i01",null,"Inmobiliaria Viviendas 2000 SPA","i01","GZ05",null,"I20","INMOBILIARIA EL TILO SPA",{"$f":"DFEmpresas[[#This Row],[LegalEntityId]]&\" - \"&DFEmpresas[[#This Row],[Name]]","v":"I20 - INMOBILIARIA EL TILO SPA"},null,"BOD02","Honorarios y Proyectos","S02003","Otras especialidades","Otros Proyectos u Honorarios",11066001,"Obras en Construccion",null,null,null,null,null,"BOD06","Operación","S06001","Mantencion Viviendas"]
[null,null,null,null,null,"Inmobiliaria Viviendas 2000 SPA",{"$f":"LEFT(DFProyectos[[#This Row],[Codigo]],4)","v":"GZ01"},"GZ0121","Terreno ADR6 y ADR7","i01","GZ0121i01",null,"Inmobiliaria Fg Oriente Ii Spa","NE","GZ05",null,"I21","INMOBILIARIA LOS PIÑONES SPA",{"$f":"DFEmpresas[[#This Row],[LegalEntityId]]&\" - \"&DFEmpresas[[#This Row],[Name]]","v":"I21 - INMOBILIARIA LOS PIÑONES SPA"},null,"BOD02","Honorarios y Proyectos","S02004","DIA, IMIV ","DIA, IMIV",11066001,"Obras en Construccion",null,null,null,null,null,"BOD06","Operación","S06002","Habilitacion EECC"]
[null,null,null,null,null,"Inmobiliaria 4 Esquinas Spa",{"$f":"LEFT(DFProyectos[[#This Row],[Codigo]],4)","v":"GZ01"},"GZ0122","Parque Montemar Etapa 2","I05","GZ0122I05",null,"Inmobiliaria Goycolea SPA","I28","GZ05",null,"I22","Inmobiliaria Momentum S.A.",{"$f":"DFEmpresas[[#This Row],[LegalEntityId]]&\" - \"&DFEmpresas[[#This Row],[Name]]","v":"I22 - Inmobiliaria Momentum S.A."},null,"BOD02","Honorarios y Proyectos","S02005","ITO","ITO",11066001,"Obras en Construccion",null,null,null,null,null,"BOD06","Operación","S06003","Preparacion Viviendas"]
[null,null,null,null,null,"Inmobiliaria 4 Esquinas Spa",{"$f":"LEFT(DFProyectos[[#This Row],[Codigo]],4)","v":"GZ01"},"GZ0123","Parque Montemar Etapa 3","I05","GZ0123I05",null,"Inmobiliaria FG Oriente I SpA","I10","GZ05",null,"I23","INMOBILIARIA EL PERO SPA",{"$f":"DFEmpresas[[#This Row],[LegalEntityId]]&\" - \"&DFEmpresas[[#This Row],[Name]]","v":"I23 - INMOBILIARIA EL PERO SPA"},null,"BOD02","Honorarios y Proyectos","S02006","Gerenciamiento Externo","Gerenciamiento Externo",11066001,"Obras en Construccion",null,null,null,null,null,"BOD06","Operación","S06004","Mantencion Terreno"]
[null,null,null,null,null,"Inmobiliaria Viviendas 2000 SPA",{"$f":"LEFT(DFProyectos[[#This Row],[Codigo]],4)","v":"GZ01"},"GZ0124","Altos Del Rosario 6 E","i01","GZ0124i01",null,"Inmobiliaria America SpA","I07","GZ05",null,"I24","INMOBILIARIA ROSARIO SPA",{"$f":"DFEmpresas[[#This Row],[LegalEntityId]]&\" - \"&DFEmpresas[[#This Row],[Name]]","v":"I24 - INMOBILIARIA ROSARIO SPA"},null,"BOD03","Permisos y Aportes","S03001","Permisos de edificacion","Permiso de Edificación",11066001,"Obras en Construccion",null,null,null,null,null,"BOD07","Post-Venta","S07001","Gastos Post Venta"]
[null,null,null,null,null,"Inmobiliaria Viviendas 2000 SPA",{"$f":"LEFT(DFProyectos[[#This Row],[Codigo]],4)","v":"GZ02"},"GZ0201","Oficina Rm SC","i01","GZ0201i01",null,"Inmobiliaria Alonso de Ercilla SpA","I06","GZ05",null,"I25","VILUMANQUE ORIENTE 1 Spa",{"$f":"DFEmpresas[[#This Row],[LegalEntityId]]&\" - \"&DFEmpresas[[#This Row],[Name]]","v":"I25 - VILUMANQUE ORIENTE 1 Spa"},null,"BOD03","Permisos y Aportes","S03001","Permisos de edificacion","Modificación de Proyecto",11066001,"Obras en Construccion",null,null,null,null,null,"BOD08","Administracion","S08001","Asesorias"]
[null,null,null,null,null,"Inmobiliaria Viviendas 2000 SPA",{"$f":"LEFT(DFProyectos[[#This Row],[Codigo]],4)","v":"GZ02"},"GZ0202","Condominio Las Acacias","i01","GZ0202i01",null,"Inmobiliaria Viviendas 2000 SPA","i01","GZ06",null,"I26","AGRICOLA Y FORESTAL SAN ANTONIO SPA",{"$f":"DFEmpresas[[#This Row],[LegalEntityId]]&\" - \"&DFEmpresas[[#This Row],[Name]]","v":"I26 - AGRICOLA Y FORESTAL SAN ANTONIO SPA"},null,"BOD03","Permisos y Aportes","S03001","Permisos de edificacion","Anteproyecto",11066001,"Obras en Construccion",null,null,null,null,null,"BOD08","Administracion","S08002","Gastos de Oficina"]
[null,null,null,null,null,"Inmobiliaria Viviendas 2000 SPA",{"$f":"LEFT(DFProyectos[[#This Row],[Codigo]],4)","v":"GZ02"},"GZ0203","Condominio Las Camelias","i01","GZ0203i01",null,"Inmobiliaria La Campiña SpA","I19","GZ06",null,"I27","FG INMOBILIARIA S.P.A",{"$f":"DFEmpresas[[#This Row],[LegalEntityId]]&\" - \"&DFEmpresas[[#This Row],[Name]]","v":"I27 - FG INMOBILIARIA S.P.A"},null,"BOD03","Permisos y Aportes","S03001","Permisos de edificacion","Certificado de Número",11066001,"Obras en Construccion",null,null,null,null,null,"BOD08","Administracion","S08003","Gestión de Personas"]
[null,null,null,null,null,"Inmobiliaria Viviendas 2000 SPA",{"$f":"LEFT(DFProyectos[[#This Row],[Codigo]],4)","v":"GZ02"},"GZ0204","Condominio Las Dalias","i01","GZ0204i01",null,"Inmobiliaria FG Mañio SpA","I09","GZ06",null,"I28","INMOBILIARIA GOYCOLEA SPA",{"$f":"DFEmpresas[[#This Row],[LegalEntityId]]&\" - \"&DFEmpresas[[#This Row],[Name]]","v":"I28 - INMOBILIARIA GOYCOLEA SPA"},null,"BOD03","Permisos y Aportes","S03001","Permisos de edificacion","Subdivisión y Fusión",11066001,"Obras en Construccion",null,null,null,null,null,"BOD08","Administracion","S08004","Viaticos"]
[null,null,null,null,null,"Inmobiliaria Viviendas 2000 SPA",{"$f":"LEFT(DFProyectos[[#This Row],[Codigo]],4)","v":"GZ02"},"GZ0205","Condominio Los Jacintos","i01","GZ0205i01",null,"Inmobiliaria Viviendas 2000 SPA","i01","GZ07",null,"I29","INMOBILIARIA DONA JOSEFA Spa",{"$f":"DFEmpresas[[#This Row],[LegalEntityId]]&\" - \"&DFEmpresas[[#This Row],[Name]]","v":"I29 - INMOBILIARIA DONA JOSEFA Spa"},null,"BOD03","Permisos y Aportes","S03002","Aportes y empalmes","AFR",11066001,"Obras en Construccion",null,null,null,null,null,"BOD08","Administracion","S08005","Gastos tecnologicos"]
[null,null,null,null,null,"Inmobiliaria Viviendas 2000 SPA",{"$f":"LEFT(DFProyectos[[#This Row],[Codigo]],4)","v":"GZ02"},"GZ0206","Condominio Los Lirios","i01","GZ0206i01",null,"FG Inmobiliaria S.P.A","I27","GZ07",null,"I30","INVERSIONES E INMOBILIARIA FG SPA",{"$f":"DFEmpresas[[#This Row],[LegalEntityId]]&\" - \"&DFEmpresas[[#This Row],[Name]]","v":"I30 - INVERSIONES E INMOBILIARIA FG SPA"},null,"BOD03","Permisos y Aportes","S03002","Aportes y empalmes","Empalme Eléctrico",11066001,"Obras en Construccion",null,null,null,null,null,"BOD09","Financiero","S09001","Financiero"]
[null,null,null,null,null,"Inmobiliaria Viviendas 2000 SPA",{"$f":"LEFT(DFProyectos[[#This Row],[Codigo]],4)","v":"GZ02"},"GZ0207","Terreno Cumbres Del Peral","i01","GZ0207i01",null,"AGRICOLA Y FORESTAL SAN ANTONIO SPA","I26","GZ07",null,null,null,null,null,"BOD03","Permisos y Aportes","S03002","Aportes y empalmes","Empalme Sanitario",11066001,"Obras en Construccion",null,null,null,null,null,"BOD10","Contribuciones y Patentes","S10001","Contribuciones"]
[null,null,null,null,null,"Inmobiliaria Calle Calle Ltda.",{"$f":"LEFT(DFProyectos[[#This Row],[Codigo]],4)","v":"GZ02"},"GZ0208","La Viña 9","I18","GZ0208I18",null,"Vilumanque Oriente 1 Spa","I25","GZ07",null,null,null,null,null,"BOD04","Construccion","S04001","Edificacion","Edificación",11066001,"Obras en Construccion",null,null,null,null,null,"BOD10","Contribuciones y Patentes","S10002","Patente"]
[null,null,null,null,null,"Inmobiliaria Calle Calle Ltda.",{"$f":"LEFT(DFProyectos[[#This Row],[Codigo]],4)","v":"GZ02"},"GZ0209","La Viña","I18","GZ0209I18",null,"Inmobiliaria los Piñones SpA","I21","GZ07",null,null,null,null,null,"BOD04","Construccion","S04002","Micro Urbanizacion","Micro Urbanización",11066001,"Obras en Construccion",null,null,null,null,null,"BOD11","Gastos De Venta Inmuebles","S11001","Compensación Clientes"]
[null,null,null,null,null,"Inmobiliaria Calle Calle Ltda.",{"$f":"LEFT(DFProyectos[[#This Row],[Codigo]],4)","v":"GZ02"},"GZ0210","Condominio Los Parrones","I18","GZ0210I18",null,"Vilumanque Oriente 2 SpA","I17","GZ07",null,null,null,null,null,"BOD04","Construccion","S04003","Adicionales","Adicionales",11066001,"Obras en Construccion",null,null,null,null,null,"BOD11","Gastos De Venta Inmuebles","S11002","Promociones De Ventas"]
[null,null,null,null,null,"Inmobiliaria Calle Calle Ltda.",{"$f":"LEFT(DFProyectos[[#This Row],[Codigo]],4)","v":"GZ02"},"GZ0211","Condominio Los Parrones Et 2","I18","GZ0211I18",null,"Inmobiliaria Rocas Spa","I14","GZ07",null,null,null,null,null,"BOD04","Construccion","S04004","Mitigación","Mitigación",11066001,"Obras en Construccion",null,null,null,null,null,"BOD11","Gastos De Venta Inmuebles","S11003","Broker"]
[null,null,null,null,null,"Inmobiliaria Calle Calle Ltda.",{"$f":"LEFT(DFProyectos[[#This Row],[Codigo]],4)","v":"GZ02"},"GZ0212","Condominio Los Viñedos","I18","GZ0212I18",null,"Inmobiliaria Independencia SpA","I11","GZ08",null,null,null,null,null,"BOD04","Construccion","S04005","Macro Urbanizacion","Macro Urbanización",11066001,"Obras en Construccion"]
[null,null,null,null,null,"Inmobiliaria Los Huertos SpA",{"$f":"LEFT(DFProyectos[[#This Row],[Codigo]],4)","v":"GZ02"},"GZ0213","Macrourba Ml2","I12","GZ0213I12",null,null,null,null,null,null,null,null,null,"BOD05","Comercializacion","S05001","MARKETING","Estudio de Mercado",51030014,"ESTUDIOS DE MERCADO"]
[null,null,null,null,null,"Inmobiliaria Los Huertos SpA",{"$f":"LEFT(DFProyectos[[#This Row],[Codigo]],4)","v":"GZ02"},"GZ0214","Condominio Los Huertos","I12","GZ0214I12",null,null,null,null,null,null,null,null,null,"BOD05","Comercializacion","S05001","MARKETING","Comisión Agencias",51030021,"GTOS. COMISIONES AGENCIAS"]
[null,null,null,null,null,"Inmobiliaria Santa Blanca SpA",{"$f":"LEFT(DFProyectos[[#This Row],[Codigo]],4)","v":"GZ02"},"GZ0215","Macrourba Ml6","I16","GZ0215I16",null,null,null,null,null,null,null,null,null,"BOD05","Comercializacion","S05001","MARKETING","Gastos Digitales",51030017,"GASTOS DIGITAL"]
[null,null,null,null,null,"Inmobiliaria Santa Blanca SpA",{"$f":"LEFT(DFProyectos[[#This Row],[Codigo]],4)","v":"GZ02"},"GZ0216","Edificio Santa Blanca","I16","GZ0216I16",null,null,null,null,null,null,null,null,null,"BOD05","Comercializacion","S05001","MARKETING","Gastos Letreros",51030016,"GTOS. LETREROS"]
[null,null,null,null,null,"FG Inmobiliaria S.P.A",{"$f":"LEFT(DFProyectos[[#This Row],[Codigo]],4)","v":"GZ02"},"GZ0217","Terreno Santa Blanca","I27","GZ0217I27",null,null,null,null,null,null,null,null,null,"BOD05","Comercializacion","S05001","MARKETING","Gestión Marketing externo",51030003,"GASTOS PUBLICIDAD"]
[null,null,null,null,null,"Inmobiliaria Viviendas 2000 SPA",{"$f":"LEFT(DFProyectos[[#This Row],[Codigo]],4)","v":"GZ03"},"GZ0301","Oficina Rm NP-CLL","i01","GZ0301i01",null,null,null,null,null,null,null,null,null,"BOD05","Comercializacion","S05001","MARKETING","Gastos Vía Publica",51030019,"GTOS. VIA PUBLICA"]
[null,null,null,null,null,"INMOBILIARIA DONA JOSEFA Spa",{"$f":"LEFT(DFProyectos[[#This Row],[Codigo]],4)","v":"GZ03"},"GZ0302","Doña Josefina","I29","GZ0302I29",null,null,null,null,null,null,null,null,null,"BOD05","Comercializacion","S05001","MARKETING","Gasto Masivo",51030018,"GTOS. MASIVO"]
[null,null,null,null,null,"Inmobiliaria Viviendas 2000 SPA",{"$f":"LEFT(DFProyectos[[#This Row],[Codigo]],4)","v":"GZ03"},"GZ0303","Hacienda Don Diego","i01","GZ0303i01",null,null,null,null,null,null,null,null,null,"BOD05","Comercializacion","S05001","MARKETING","Branding",51030003,"GASTOS PUBLICIDAD"]
[null,null,null,null,null,"Inmobiliaria Viviendas 2000 SPA",{"$f":"LEFT(DFProyectos[[#This Row],[Codigo]],4)","v":"GZ03"},"GZ0304","Santa María De Renca","i01","GZ0304i01",null,null,null,null,null,null,null,null,null,"BOD05","Comercializacion","S05001","MARKETING","Remuneraciones MKT",51022001,"SUELDOS DFL2"]
[null,null,null,null,null,"Inmobiliaria Dona Carmela SpA",{"$f":"LEFT(DFProyectos[[#This Row],[Codigo]],4)","v":"GZ03"},"GZ0305","Edificio Doña Carmela","I08","GZ0305I08",null,null,null,null,null,null,null,null,null,"BOD05","Comercializacion","S05001","MARKETING","Marketing Piloto",51030004,"MARKETING PILOTO"]
[null,null,null,null,null,"Inmobiliaria Nueva el Vergel Ltda",{"$f":"LEFT(DFProyectos[[#This Row],[Codigo]],4)","v":"GZ03"},"GZ0306","Edificio El Tirol","I13","GZ0306I13",null,null,null,null,null,null,null,null,null,"BOD05","Comercializacion","S05001","MARKETING","Marketing Sala de Venta",51030005,"MARKETING SALA DE VENTA"]
[null,null,null,null,null,"Inmobiliaria Momentum S.A.",{"$f":"LEFT(DFProyectos[[#This Row],[Codigo]],4)","v":"GZ03"},"GZ0307","Edificio Momentum","I22","GZ0307I22",null,null,null,null,null,null,null,null,null,"BOD05","Comercializacion","S05001","MARKETING","Merchandising",51030025,"MERCHANDISING INMOBILIARIA"]
[null,null,null,null,null,"FG Inmobiliaria S.P.A",{"$f":"LEFT(DFProyectos[[#This Row],[Codigo]],4)","v":"GZ03"},"GZ0308","Mario Dabed","I27","GZ0308I27",null,null,null,null,null,null,null,null,null,"BOD05","Comercializacion","S05001","MARKETING","Material Gráfico/ Digital",51030013,"MATERIAL GRAFICO / DIGITAL"]
[null,null,null,null,null,"Inmobiliaria Fg Oriente Ii Spa",{"$f":"LEFT(DFProyectos[[#This Row],[Codigo]],4)","v":"GZ03"},"GZ0309","Edificio Beethoven","NE","GZ0309NE",null,null,null,null,null,null,null,null,null,"BOD05","Comercializacion","S05002","Gestion de Venta","Habilitación Sala de Venta",51030002,"HABILITACION SALA DE VENTAS / PILOTO VENTAS"]
[null,null,null,null,null,"Inmobiliaria Beethoven Spa",{"$f":"LEFT(DFProyectos[[#This Row],[Codigo]],4)","v":"GZ03"},"GZ0309","Edificio Beethoven","NE","GZ0309NE",null,null,null,null,null,null,null,null,null,"BOD05","Comercializacion","S05002","Gestion de Venta","Mantención Sala de Venta",51030001,"MANTENCION SALA DE VENTAS / PILOTOS VENTAS"]
[null,null,null,null,null,"Inmobiliaria Viviendas 2000 SPA",{"$f":"LEFT(DFProyectos[[#This Row],[Codigo]],4)","v":"GZ04"},"GZ0401","Oficina Rm JB","i01","GZ0401i01",null,null,null,null,null,null,null,null,null,"BOD05","Comercializacion","S05002","Gestion de Venta","Remuneraciones Venta",51022001,"SUELDOS DFL2"]
[null,null,null,null,null,"Inmobiliaria America SpA",{"$f":"LEFT(DFProyectos[[#This Row],[Codigo]],4)","v":"GZ04"},"GZ0402","Edificio Bío Bío","I07","GZ0402I07",null,null,null,null,null,null,null,null,null,"BOD05","Comercializacion","S05002","Gestion de Venta","CBR y Notaria (Comercial)",51030007,"GTOS CONSERVADOR"]
[null,null,null,null,null,"Inmobiliaria El Tilo SpA",{"$f":"LEFT(DFProyectos[[#This Row],[Codigo]],4)","v":"GZ04"},"GZ0403","El Tilo","I20","GZ0403I20",null,null,null,null,null,null,null,null,null,"BOD05","Comercializacion","S05002","Gestion de Venta","Pilotero ",51030001,"MANTENCION SALA DE VENTAS / PILOTOS VENTAS"]
[null,null,null,null,null,"Inmobiliaria Viviendas 2000 SPA",{"$f":"LEFT(DFProyectos[[#This Row],[Codigo]],4)","v":"GZ05"},"GZ0501","Oficina Rm JW","i01","GZ0501i01",null,null,null,null,null,null,null,null,null,"BOD05","Comercializacion","S05002","Gestion de Venta","Gestión de Ventas externa",51030012,"GASTOS GENERALES DE VENTAS"]
[null,null,null,null,null,"Inmobiliaria Viviendas 2000 SPA",{"$f":"LEFT(DFProyectos[[#This Row],[Codigo]],4)","v":"GZ05"},"GZ0502","Terreno Los Coipos","i01","GZ0502i01",null,null,null,null,null,null,null,null,null,"BOD05","Comercializacion","S05002","Gestion de Venta","Multas por Resciliación",62005003,"OTROS INGRESOS Y GASTOS"]
[null,null,null,null,null,"Inmobiliaria Alonso de Ercilla SpA",{"$f":"LEFT(DFProyectos[[#This Row],[Codigo]],4)","v":"GZ05"},"GZ0503","Alonso De Ercilla","I06","GZ0503I06",null,null,null,null,null,null,null,null,null,"BOD05","Comercializacion","S05003","Gestion Operación Comercial","Seguros Venta en Verde",51007005,"SEGUROS (VTA. EN VERDE)"]
[null,null,null,null,null,"Inmobiliaria Alonso de Ercilla SpA",{"$f":"LEFT(DFProyectos[[#This Row],[Codigo]],4)","v":"GZ05"},"GZ0504","Alonso De Ercilla Ii","I06","GZ0504I06",null,null,null,null,null,null,null,null,null,"BOD05","Comercializacion","S05003","Gestion Operación Comercial","Remuneraciones Depto. Operaciones",51022001,"SUELDOS DFL2"]
[null,null,null,null,null,"Inmobiliaria America SpA",{"$f":"LEFT(DFProyectos[[#This Row],[Codigo]],4)","v":"GZ05"},"GZ0505","Edificio America","I07","GZ0505I07",null,null,null,null,null,null,null,null,null,"BOD06","Operación","S06001","Mantencion Viviendas","Gastos_Comunes",51016001,"GASTOS COMUNES DFL2"]
[null,null,null,null,null,"Inmobiliaria FG Oriente I SpA",{"$f":"LEFT(DFProyectos[[#This Row],[Codigo]],4)","v":"GZ05"},"GZ0506","Edificio Plaza Helsinki","I10","GZ0506I10",null,null,null,null,null,null,null,null,null,"BOD06","Operación","S06001","Mantencion Viviendas","Agua",51016005,"AGUA"]
[null,null,null,null,null,"Inmobiliaria Goycolea SPA",{"$f":"LEFT(DFProyectos[[#This Row],[Codigo]],4)","v":"GZ05"},"GZ0507","Edificio Goycolea","I28","GZ0507I28",null,null,null,null,null,null,null,null,null,"BOD06","Operación","S06001","Mantencion Viviendas","Luz",51016012,"ELECTRICIDAD O LUZ "]
[null,null,null,null,null,"Inmobiliaria Fg Oriente Ii Spa",{"$f":"LEFT(DFProyectos[[#This Row],[Codigo]],4)","v":"GZ05"},"GZ0508","Carlos Alvarado","NE","GZ0508NE",null,null,null,null,null,null,null,null,null,"BOD06","Operación","S06001","Mantencion Viviendas","Gas",51016007,"GAS"]
[null,null,null,null,null,"Inmobiliaria Fg Oriente Ii Spa",{"$f":"LEFT(DFProyectos[[#This Row],[Codigo]],4)","v":"GZ05"},"GZ0509","Victor Rae","NE","GZ0509NE",null,null,null,null,null,null,null,null,null,"BOD06","Operación","S06001","Mantencion Viviendas","Seguros Operación",51007001,"SEGUROS"]
[null,null,null,null,null,"Inmobiliaria Viviendas 2000 SPA",{"$f":"LEFT(DFProyectos[[#This Row],[Codigo]],4)","v":"GZ06"},"GZ0601","Agua Clara","i01","GZ0601i01",null,null,null,null,null,null,null,null,null,"BOD06","Operación","S06002","Habilitacion EECC","Habilitación EECC",51017001,"SUBCONTRATOS"]
[null,null,null,null,null,"Inmobiliaria Viviendas 2000 SPA",{"$f":"LEFT(DFProyectos[[#This Row],[Codigo]],4)","v":"GZ06"},"GZ0602","Agua Clara Ii","i01","GZ0602i01",null,null,null,null,null,null,null,null,null,"BOD06","Operación","S06003","Preparacion Viviendas","Preparación Viviendas",51017001,"SUBCONTRATOS"]
[null,null,null,null,null,"Inmobiliaria Viviendas 2000 SPA",{"$f":"LEFT(DFProyectos[[#This Row],[Codigo]],4)","v":"GZ06"},"GZ0603","El Rodeo Ii","i01","GZ0603i01",null,null,null,null,null,null,null,null,null,"BOD06","Operación","S06003","Preparacion Viviendas","Remuneración Mantención de Stock",51022001,"SUELDOS DFL2"]
[null,null,null,null,null,"Inmobiliaria La Campiña SpA",{"$f":"LEFT(DFProyectos[[#This Row],[Codigo]],4)","v":"GZ06"},"GZ0604","La Campiña","I19","GZ0604I19",null,null,null,null,null,null,null,null,null,"BOD06","Operación","S06003","Preparacion Viviendas","Arriendos Operación",61005001,"ARRIENDOS"]
[null,null,null,null,null,"Inmobiliaria Viviendas 2000 SPA",{"$f":"LEFT(DFProyectos[[#This Row],[Codigo]],4)","v":"GZ06"},"GZ0605","Monteblanco","i01","GZ0605i01",null,null,null,null,null,null,null,null,null,"BOD06","Operación","S06004","Mantencion Terreno","Gastos notariales y CBR terrenos",51027002,"GASTOS NOTARIALES"]
[null,null,null,null,null,"Inmobiliaria Viviendas 2000 SPA",{"$f":"LEFT(DFProyectos[[#This Row],[Codigo]],4)","v":"GZ06"},"GZ0606","Peñon Poniente","i01","GZ0606i01",null,null,null,null,null,null,null,null,null,"BOD06","Operación","S06004","Mantencion Terreno","Seguridad",51017001,"SUBCONTRATOS"]
[null,null,null,null,null,"Inmobiliaria Viviendas 2000 SPA",{"$f":"LEFT(DFProyectos[[#This Row],[Codigo]],4)","v":"GZ06"},"GZ0607","Tranque Norte","i01","GZ0607i01",null,null,null,null,null,null,null,null,null,"BOD07","Post-Venta","S07001","Gastos Post Venta","Gasto Post-venta",51014018,"GASTOS POST VENTA"]
[null,null,null,null,null,"Inmobiliaria Viviendas 2000 SPA",{"$f":"LEFT(DFProyectos[[#This Row],[Codigo]],4)","v":"GZ06"},"GZ0608","Terreno Fundo Las Peñas","i01","GZ0608i01",null,null,null,null,null,null,null,null,null,"BOD07","Post-Venta","S07001","Gastos Post Venta","Gasto Pintura",51014018,"GASTOS POST VENTA"]
[null,null,null,null,null,"Inmobiliaria Viviendas 2000 SPA",{"$f":"LEFT(DFProyectos[[#This Row],[Codigo]],4)","v":"GZ06"},"GZ0609","Terreno Vallejos","i01","GZ0609i01",null,null,null,null,null,null,null,null,null,"BOD07","Post-Venta","S07001","Gastos Post Venta","Gasto Artefactos Sanitarios",51014018,"GASTOS POST VENTA"]
[null,null,null,null,null,"Inmobiliaria FG Mañio SpA",{"$f":"LEFT(DFProyectos[[#This Row],[Codigo]],4)","v":"GZ06"},"GZ0610","Condominio Peñon Oriente","I09","GZ0610I09",null,null,null,null,null,null,null,null,null,"BOD07","Post-Venta","S07001","Gastos Post Venta","Gasto Impermeabilización",51014018,"GASTOS POST VENTA"]
[null,null,null,null,null,"Inmobiliaria FG Mañio SpA",{"$f":"LEFT(DFProyectos[[#This Row],[Codigo]],4)","v":"GZ06"},"GZ0611","Bahia Pucón","I09","GZ0611I09",null,null,null,null,null,null,null,null,null,"BOD07","Post-Venta","S07001","Gastos Post Venta","Gasto Piso Flotante",51014018,"GASTOS POST VENTA"]
[null,null,null,null,null,"Inmobiliaria FG Mañio SpA",{"$f":"LEFT(DFProyectos[[#This Row],[Codigo]],4)","v":"GZ06"},"GZ0612","Edificio Peñon Oriente Etapa I","I09","GZ0612I09",null,null,null,null,null,null,null,null,null,"BOD07","Post-Venta","S07001","Gastos Post Venta","Gasto Ventanas",51014018,"GASTOS POST VENTA"]
[null,null,null,null,null,"Inmobiliaria FG Mañio SpA",{"$f":"LEFT(DFProyectos[[#This Row],[Codigo]],4)","v":"GZ06"},"GZ0613","Edificio Peñon Oriente Et 2","I09","GZ0613I09",null,null,null,null,null,null,null,null,null,"BOD07","Post-Venta","S07001","Gastos Post Venta","Gasto Cerámicas",51014018,"GASTOS POST VENTA"]
[null,null,null,null,null,"Inmobiliaria FG Mañio SpA",{"$f":"LEFT(DFProyectos[[#This Row],[Codigo]],4)","v":"GZ06"},"GZ0614","Parque Quinta Agrícola Et 1","I09","GZ0614I09",null,null,null,null,null,null,null,null,null,"BOD07","Post-Venta","S07001","Gastos Post Venta","Gasto Instalaciones Sanitarias",51014018,"GASTOS POST VENTA"]
[null,null,null,null,null,"Inmobiliaria FG Mañio SpA",{"$f":"LEFT(DFProyectos[[#This Row],[Codigo]],4)","v":"GZ06"},"GZ0615","Terreno Ex Plaenge","I09","GZ0615I09",null,null,null,null,null,null,null,null,null,"BOD07","Post-Venta","S07001","Gastos Post Venta","Gasto Instalaciones Eléctricas",51014018,"GASTOS POST VENTA"]
[null,null,null,null,null,"Inmobiliaria FG Mañio SpA",{"$f":"LEFT(DFProyectos[[#This Row],[Codigo]],4)","v":"GZ06"},"GZ0616","Condominio Los Montes","I09","GZ0616I09",null,null,null,null,null,null,null,null,null,"BOD07","Post-Venta","S07001","Gastos Post Venta","Gastos Mejora Proyecto",51014018,"GASTOS POST VENTA"]
[null,null,null,null,null,"Inmobiliaria FG Mañio SpA",{"$f":"LEFT(DFProyectos[[#This Row],[Codigo]],4)","v":"GZ06"},"GZ0617","Terreno Pucón","I09","GZ0617I09",null,null,null,null,null,null,null,null,null,"BOD07","Post-Venta","S07001","Gastos Post Venta","Demandas y compensación Post-venta",51014018,"GASTOS POST VENTA"]
[null,null,null,null,null,"Inmobiliaria FG Mañio SpA",{"$f":"LEFT(DFProyectos[[#This Row],[Codigo]],4)","v":"GZ06"},"GZ0618","Terreno Inia Ii","I09","GZ0618I09",null,null,null,null,null,null,null,null,null,"BOD07","Post-Venta","S07001","Gastos Post Venta","Remuneraciones Post-venta",51022001,"SUELDOS DFL2"]
[null,null,null,null,null,"Inmobiliaria La Campiña SpA",{"$f":"LEFT(DFProyectos[[#This Row],[Codigo]],4)","v":"GZ06"},"GZ0619","Agua Piedra","I19","GZ0619I19",null,null,null,null,null,null,null,null,null,"BOD08","Administracion","S08001","Asesorias","Asesoría Legal",51027007,"HONORARIOS Y ASESORIAS LEGALES Y ABOGADOS"]
[null,null,null,null,null,"Inmobiliaria Viviendas 2000 SPA",{"$f":"LEFT(DFProyectos[[#This Row],[Codigo]],4)","v":"GZ07"},"GZ0701","Oficina Concepción","i01","GZ0701i01",null,null,null,null,null,null,null,null,null,"BOD08","Administracion","S08001","Asesorias","Asesorías Administración",51027012,"ASESORIAS"]
[null,null,null,null,null,"Inmobiliaria Viviendas 2000 SPA",{"$f":"LEFT(DFProyectos[[#This Row],[Codigo]],4)","v":"GZ07"},"GZ0702","Parques Antiguos FM","i01","GZ0702i01",null,null,null,null,null,null,null,null,null,"BOD08","Administracion","S08001","Asesorias","Suscripciones [Revistas y Otros]",51027012,"ASESORIAS"]
[null,null,null,null,null,"Inmobiliaria Viviendas 2000 SPA",{"$f":"LEFT(DFProyectos[[#This Row],[Codigo]],4)","v":"GZ07"},"GZ0703","Alto Araucarias","i01","GZ0703i01",null,null,null,null,null,null,null,null,null,"BOD08","Administracion","S08001","Asesorias","Servicio Administración MCA",51027006,"SERVICIOS DE ADMINISTRACION"]
[null,null,null,null,null,"Inmobiliaria Viviendas 2000 SPA",{"$f":"LEFT(DFProyectos[[#This Row],[Codigo]],4)","v":"GZ07"},"GZ0704","Vista Araucarias","i01","GZ0704i01",null,null,null,null,null,null,null,null,null,"BOD08","Administracion","S08001","Asesorias","Auditorias",52019001,"HONORARIOS PROF. ASES.,AUDITORIA Y OTR"]
[null,null,null,null,null,"Inmobiliaria Viviendas 2000 SPA",{"$f":"LEFT(DFProyectos[[#This Row],[Codigo]],4)","v":"GZ07"},"GZ0705","Terraza Araucarias","i01","GZ0705i01",null,null,null,null,null,null,null,null,null,"BOD08","Administracion","S08001","Asesorias","Capacitaciones",51027013,"GASTOS RECURSOS HUMANOS"]
[null,null,null,null,null,"Inmobiliaria Viviendas 2000 SPA",{"$f":"LEFT(DFProyectos[[#This Row],[Codigo]],4)","v":"GZ07"},"GZ0706","Terreno Ex-Machasa","i01","GZ0706i01",null,null,null,null,null,null,null,null,null,"BOD08","Administracion","S08002","Gastos de Oficina","Teléfono - Internet",51016016,"TELEFONO"]
[null,null,null,null,null,"FG Inmobiliaria S.P.A",{"$f":"LEFT(DFProyectos[[#This Row],[Codigo]],4)","v":"GZ07"},"GZ0707","Terreno Vilumanque","I27","GZ0707I27",null,null,null,null,null,null,null,null,null,"BOD08","Administracion","S08002","Gastos de Oficina","Artículos de Oficinas",51027011,"ARTICULOS Y GASTOS DE OFICINA "]
[null,null,null,null,null,"AGRICOLA Y FORESTAL SAN ANTONIO SPA",{"$f":"LEFT(DFProyectos[[#This Row],[Codigo]],4)","v":"GZ07"},"GZ0707","Terreno Vilumanque","I26","GZ0707I26",null,null,null,null,null,null,null,null,null,"BOD08","Administracion","S08002","Gastos de Oficina","Artículos y Gasto de Aseo",51027011,"ARTICULOS Y GASTOS DE OFICINA "]
[null,null,null,null,null,"Inmobiliaria Rocas Spa",{"$f":"LEFT(DFProyectos[[#This Row],[Codigo]],4)","v":"GZ07"},"GZ0708","Cond. Laderas De Curamonte","I14","GZ0708I14",null,null,null,null,null,null,null,null,null,"BOD08","Administracion","S08002","Gastos de Oficina","Gastos Vehículos",51027011,"ARTICULOS Y GASTOS DE OFICINA "]
[null,null,null,null,null,"Inmobiliaria Rocas Spa",{"$f":"LEFT(DFProyectos[[#This Row],[Codigo]],4)","v":"GZ07"},"GZ0709","Terreno Curamonte","I14","GZ0709I14",null,null,null,null,null,null,null,null,null,"BOD08","Administracion","S08002","Gastos de Oficina","Gastos Comunes y arriendo Estacionamientos",52031001,"ARRDO.BIENES RAICES Y OTROS"]
[null,null,null,null,null,"FG Inmobiliaria S.P.A",{"$f":"LEFT(DFProyectos[[#This Row],[Codigo]],4)","v":"GZ07"},"GZ0709","Terreno Curamonte","I27","GZ0709I27",null,null,null,null,null,null,null,null,null,"BOD08","Administracion","S08002","Gastos de Oficina","Arriendo Oficina",52031001,"ARRDO.BIENES RAICES Y OTROS"]
[null,null,null,null,null,"Inmobiliaria Viviendas 2000 SPA",{"$f":"LEFT(DFProyectos[[#This Row],[Codigo]],4)","v":"GZ07"},"GZ0710","Punta del Este","i01","GZ0710i01",null,null,null,null,null,null,null,null,null,"BOD08","Administracion","S08003","Gestión de Personas","Remuneraciones Administración",51022001,"SUELDOS DFL2"]
[null,null,null,null,null,"Inmobiliaria Rocas Spa",{"$f":"LEFT(DFProyectos[[#This Row],[Codigo]],4)","v":"GZ07"},"GZ0711","Condominio Rocas De Curamonte","I14","GZ0711I14",null,null,null,null,null,null,null,null,null,"BOD08","Administracion","S08003","Gestión de Personas","Alimentación",51027013,"GASTOS RECURSOS HUMANOS"]
[null,null,null,null,null,"Vilumanque Oriente 2 SpA",{"$f":"LEFT(DFProyectos[[#This Row],[Codigo]],4)","v":"GZ07"},"GZ0712","Condominio Vista Valle Y Monte","I17","GZ0712I17",null,null,null,null,null,null,null,null,null,"BOD08","Administracion","S08003","Gestión de Personas","Eventos",51027013,"GASTOS RECURSOS HUMANOS"]
[null,null,null,null,null,"Inmobiliaria Rocas Spa",{"$f":"LEFT(DFProyectos[[#This Row],[Codigo]],4)","v":"GZ07"},"GZ0713","Mercadito","I14","GZ0713I14",null,null,null,null,null,null,null,null,null,"BOD08","Administracion","S08003","Gestión de Personas","Seguros de vida",51027013,"GASTOS RECURSOS HUMANOS"]
[null,null,null,null,null,"Inmobiliaria los Piñones SpA",{"$f":"LEFT(DFProyectos[[#This Row],[Codigo]],4)","v":"GZ07"},"GZ0714","Edificio Araucarias Etapa I","I21","GZ0714I21",null,null,null,null,null,null,null,null,null,"BOD08","Administracion","S08003","Gestión de Personas","Regalos y Gift card",51027013,"GASTOS RECURSOS HUMANOS"]
[null,null,null,null,null,"Inmobiliaria Rocas Spa",{"$f":"LEFT(DFProyectos[[#This Row],[Codigo]],4)","v":"GZ07"},"GZ0715","Condominio Peñon Curamonte","I14","GZ0715I14",null,null,null,null,null,null,null,null,null,"BOD08","Administracion","S08003","Gestión de Personas","Donaciones",51027013,"GASTOS RECURSOS HUMANOS"]
[null,null,null,null,null,"Inmobiliaria Viviendas 2000 SPA",{"$f":"LEFT(DFProyectos[[#This Row],[Codigo]],4)","v":"GZ07"},"GZ0716","Post-Venta Concepción","i01","GZ0716i01",null,null,null,null,null,null,null,null,null,"BOD08","Administracion","S08004","Viaticos","Viajes",51027014,"VIAJES, HOSPEDAJE  Y ALIMENTACION"]
[null,null,null,null,null,"Inmobiliaria Rocas Spa",{"$f":"LEFT(DFProyectos[[#This Row],[Codigo]],4)","v":"GZ07"},"GZ0717","Praderas de Curamonte","I14","GZ0717I14",null,null,null,null,null,null,null,null,null,"BOD08","Administracion","S08004","Viaticos","Hospedaje",51027014,"VIAJES, HOSPEDAJE  Y ALIMENTACION"]
[null,null,null,null,null,"Vilumanque Oriente 1 Spa",{"$f":"LEFT(DFProyectos[[#This Row],[Codigo]],4)","v":"GZ07"},"GZ0718","Macrourba Vilumanque","I25","GZ0718I25",null,null,null,null,null,null,null,null,null,"BOD08","Administracion","S08004","Viaticos","Almuerzos Ejecutivos",51027014,"VIAJES, HOSPEDAJE  Y ALIMENTACION"]
[null,null,null,null,null,"Vilumanque Oriente 2 SpA",{"$f":"LEFT(DFProyectos[[#This Row],[Codigo]],4)","v":"GZ07"},"GZ0719","Vilumanque 9 Casas","I17","GZ0719I17",null,null,null,null,null,null,null,null,null,"BOD08","Administracion","S08005","Gastos tecnologicos","Licencias (Administración)",51016029,"GASTOS COMPUTACIONALES"]
[null,null,null,null,null,"Vilumanque Oriente 2 SpA",{"$f":"LEFT(DFProyectos[[#This Row],[Codigo]],4)","v":"GZ07"},"GZ0720","Vilumanque Town House","I17","GZ0720I17",null,null,null,null,null,null,null,null,null,"BOD08","Administracion","S08005","Gastos tecnologicos","Adquisición Software",51016029,"GASTOS COMPUTACIONALES"]
[null,null,null,null,null,"Inmobiliaria Independencia SpA",{"$f":"LEFT(DFProyectos[[#This Row],[Codigo]],4)","v":"GZ08"},"GZ0801","Edificio Cotapos","I11","GZ0801I11",null,null,null,null,null,null,null,null,null,"BOD08","Administracion","S08005","Gastos tecnologicos","Depreciación",51016029,"GASTOS COMPUTACIONALES"]
[null,null,null,null,null,"Grupo FG Inmobiliarias",{"$f":"LEFT(DFProyectos[[#This Row],[Codigo]],4)","v":"OC00"},"OC0001","Oficina Central Inmobiliaria","NE","OC0001NE",null,null,null,null,null,null,null,null,null,"BOD09","Financiero","S09001","Financiero","Intereses Créditos Bancarios",52035001,"INTERESES PTMO. BANCARIOS"]
[null,null,null,null,null,"Inmobiliaria Viviendas 2000 SPA",{"$f":"LEFT(DFProyectos[[#This Row],[Codigo]],4)","v":"OC00"},"OC0002","Post-Venta RM","i01","OC0002i01",null,null,null,null,null,null,null,null,null,"BOD09","Financiero","S09001","Financiero","Gastos Impuestos de Letras y Mutuos",51030010,"GTOS IMPUESTO DE LETRAS Y MUTUOS"]
[null,null,null,null,null,"Grupo FG Inmobiliarias",{"$f":"LEFT(DFProyectos[[#This Row],[Codigo]],4)","v":"OC00"},"OC0003","Corporativo","NE","OC0003NE",null,null,null,null,null,null,null,null,null,"BOD09","Financiero","S09001","Financiero","Comisión de cuentas Bancarias",52035003,"GASTOS BANCARIOS"]
[null,null,null,null,null,"Grupo FG Inmobiliarias",{"$f":"LEFT(DFProyectos[[#This Row],[Codigo]],4)","v":"OC00"},"OC0004","Proyectos Antiguos","NE","OC0004NE",null,null,null,null,null,null,null,null,null,"BOD10","Contribuciones y Patentes","S10001","Contribuciones","Contribuciones Vivienda",52028008,"CONTRIBUCIONES"]
[null,null,null,null,null,"FG GESTION INMOBILIARIA Spa",{"$f":"LEFT(DFProyectos[[#This Row],[Codigo]],4)","v":"OC00"},"OC0005","Oficina Gestión Inmobiliaria","I04","OC0005I04",null,null,null,null,null,null,null,null,null,"BOD10","Contribuciones y Patentes","S10001","Contribuciones","Contribuciones Terreno",52028008,"CONTRIBUCIONES"]
[null,null,null,null,null,"FG GESTION INMOBILIARIA Spa",{"$f":"LEFT(DFProyectos[[#This Row],[Codigo]],4)","v":"OC00"},"OC0006","Futuros Proyectos","I04","OC0006I04",null,null,null,null,null,null,null,null,null,"BOD10","Contribuciones y Patentes","S10001","Contribuciones","Recuperación Contribuciones",52028008,"CONTRIBUCIONES"]
[null,null,null,null,null,"FG Inmobiliaria S.P.A",{"$f":"LEFT(DFProyectos[[#This Row],[Codigo]],4)","v":"OC00"},"OC0007","Parque Vr ","I27","OC0007I27",null,null,null,null,null,null,null,null,null,"BOD10","Contribuciones y Patentes","S10001","Contribuciones","Asesoría Contribuciones",52028008,"CONTRIBUCIONES"]
[null,null,null,null,null,"INMOBILIARIA CALLE CALLE LTDA.",{"$f":"LEFT(DFProyectos[[#This Row],[Codigo]],4)","v":"PA01"},"PA0101","San Ignacio De Quilicura","I18","PA0101I18",null,null,null,null,null,null,null,null,null,"BOD10","Contribuciones y Patentes","S10001","Contribuciones","Intereses Y multas Fiscales",52029002,"INTERESES Y MULTAS FISCALES"]
[null,null,null,null,null,"FG Inmobiliaria S.P.A",{"$f":"LEFT(DFProyectos[[#This Row],[Codigo]],4)","v":"PMQ0"},"PMQ001","Maquinaria","I27","PMQ001I27",null,null,null,null,null,null,null,null,null,"BOD10","Contribuciones y Patentes","S10002","Patente","Patentes",52026002,"PATENTES"]
[null,null,null,null,null,null,null,null,null,null,null,null,null,null,null,null,null,null,null,null,"BOD10","Contribuciones y Patentes","S10002","Patente","Multas entidades Publicas",52029004,"MULTAS ENTIDADES PUBLICAS"]
[null,null,null,null,null,null,null,null,null,null,null,null,null,null,null,null,null,null,null,null,"BOD11","Gastos De Venta Inmuebles","S11001","Compensación Clientes","Indemnización Clientes",51034001,"INDEMNIZACION CLIENTES"]
[null,null,null,null,null,null,null,null,null,null,null,null,null,null,null,null,null,null,null,null,"BOD11","Gastos De Venta Inmuebles","S11002","Promociones De Ventas","Promociones De Ventas",51030015,"PROMOCIONES DE VENTAS"]
[null,null,null,null,null,null,null,null,null,null,null,null,null,null,null,null,null,null,null,null,"BOD11","Gastos De Venta Inmuebles","S11003","Broker","Broker",51030026,"GASTOS COMISION BROKER"]